Workbook

Sheet 2008
A1: Player | B1: G | D1: AB | E1: R | F1: H | G1: 2B | H1: 3B | I1: HR | J1: SO | K1: SAC | L1: RBI
A2: Ajeet Bhoyar | B2: 3 | D2: 7 | E2: 2 | F2: 2 | G2: 1 | H2: 0 | I2: 0 | J2: 0 | K2: 0 | L2: 0
A3: Aleksey Kireyev | B3: 5 | D3: 15 | E3: 1 | F3: 8 | G3: 0 | H3: 0 | I3: 0 | J3: 0 | K3: 0 | L3: 4
A4: A-WOL | B4: 8 | D4: 23 | E4: 7 | F4: 17 | G4: 2 | H4: 1 | I4: 1 | J4: 0 | K4: 0 | L4: 8
A5: Colby | B5: 5 | D5: 11 | E5: 4 | F5: 4 | G5: 0 | H5: 0 | I5: 0 | J5: 1 | K5: 0 | L5: 1
A6: Darrell Teague | B6: 5 | D6: 15 | E6: 4 | F6: 9 | G6: 3 | H6: 0 | I6: 0 | J6: 0 | K6: 1 | L6: 6
A7: Dharmender | B7: 3 | D7: 5 | E7: 0 | F7: 2 | G7: 0 | H7: 0 | I7: 0 | J7: 0 | K7: 2 | L7: 1
A8: Don Muldoon | B8: 4 | D8: 13 | E8: 9 | F8: 10 | G8: 8 | H8: 1 | I8: 0 | J8: 0 | K8: 0 | L8: 7
A9: Elliott Eno | B9: 8 | D9: 22 | E9: 4 | F9: 8 | G9: 0 | H9: 0 | I9: 0 | J9: 4 | K9: 0 | L9: 3
A10: Jerry Buote | B10: 6 | D10: 21 | E10: 4 | F10: 15 | G10: 2 | H10: 0 | I10: 0 | J10: 0 | K10: 0 | L10: 5
A11: Johnna Infanti | B11: 5 | D11: 11 | E11: 1 | F11: 2 | G11: 1 | H11: 0 | I11: 0 | J11: 2 | K11: 3 | L11: 1
A12: Kelly Allen | B12: 5 | D12: 16 | E12: 1 | F12: 5 | G12: 0 | H12: 0 | I12: 0 | J12: 1 | K12: 0 | L12: 1
A13: Kelly Raymond | B13: 4 | D13: 12 | E13: 0 | F13: 3 | G13: 0 | H13: 0 | I13: 0 | J13: 1 | K13: 1 | L13: 3
A14: Kim Reynolds | B14: 5 | D14: 11 | E14: 2 | F14: 5 | G14: 0 | H14: 0 | I14: 0 | J14: 0 | K14: 1 | L14: 2
A15: Liz Cornwall | B15: 7 | D15: 22 | E15: 4 | F15: 7 | G15: 2 | H15: 0 | I15: 0 | J15: 0 | K15: 1 | L15: 3
A16: Mike O'Connor | B16: 8 | D16: 28 | E16: 12 | F16: 24 | G16: 1 | H16: 0 | I16: 0 | J16: 0 | K16: 0 | L16: 7
A17: Naren Patel | B17: 2 | D17: 5 | E17: 2 | F17: 2 | G17: 0 | H17: 0 | I17: 0 | J17: 0 | K17: 0 | L17: 1
A18: Nicole Kelly | B18: 2 | D18: 6 | E18: 3 | F18: 3 | G18: 0 | H18: 0 | I18: 0 | J18: 0 | K18: 0 | L18: 0
A19: Ron Smith | B19: 7 | D19: 19 | E19: 6 | F19: 9 | G19: 2 | H19: 2 | I19: 0 | J19: 2 | K19: 3 | L19: 10
A20: Ryan Grimard | B20: 5 | D20: 17 | E20: 6 | F20: 14 | G20: 3 | H20: 1 | I20: 2 | J20: 0 | K20: 1 | L20: 16
A21: Ryan Huynh | B21: 7 | D21: 24 | E21: 10 | F21: 14 | G21: 3 | H21: 0 | I21: 0 | J21: 1 | K21: 0 | L21: 5
A22: Steven Bergstein | B22: 4 | D22: 14 | E22: 5 | F22: 10 | G22: 0 | H22: 1 | I22: 0 | J22: 0 | K22: 0 | L22: 2
A23: Audrey Markoff | B23: 1 | D23: 0 | E23: 0 | F23: 0 | G23: 0 | H23: 0 | I23: 0 | J23: 0 | K23: 0 | L23: 0
A24: Mark Morley | B24: 1 | D24: 4 | E24: 0 | F24: 2 | G24: 0 | H24: 0 | I24: 0 | J24: 0 | K24: 0 | L24: 1
A25: Sam | B25: 1 | D25: 1 | E25: 0 | F25: 0 | G25: 0 | H25: 0 | I25: 0 | J25: 0 | K25: 0 | L25: 0
A27: TEAM | B27: =MAX(B2:B26) -> 8 | D27: =SUM(D2:D26) -> 322 | E27: =SUM(E2:E26) -> 87 | F27: 175 | G27: 28 | H27: 6 | I27: 3 | J27: 12 | K27: 13 | L27: 87

Sheet 2009
A1: Player | B1: G | D1: AB | E1: R | F1: H | G1: 2B | H1: 3B | I1: HR | J1: SO | K1: FC | L1: SAC | M1: RBI
A2: Ajeet Bhoyar | B2: 5 | D2: 8 | E2: 0 | F2: 5 | G2: 0 | H2: 0 | I2: 0 | J2: 0 | K2: 1 | L2: 0 | M2: 3
A3: Aleksey Kireyev | B3: 5 | D3: 15 | E3: 5 | F3: 10 | G3: 0 | H3: 0 | I3: 0 | J3: 0 | K3: 1 | L3: 1 | M3: 4
A4: Alex "Ivan" Kvasov | B4: 6 | D4: 11 | E4: 2 | F4: 6 | G4: 2 | H4: 0 | I4: 0 | J4: 0 | K4: 0 | L4: 0 | M4: 0
A5: Avi Potluri | B5: 6 | D5: 14 | E5: 5 | F5: 7 | G5: 5 | H5: 0 | I5: 0 | J5: 1 | K5: 1 | L5: 0 | M5: 4
A6: A-WOL | B6: 8 | D6: 20 | E6: 2 | F6: 10 | G6: 0 | H6: 3 | I6: 0 | J6: 1 | K6: 1 | L6: 0 | M6: 6
A7: Bhavani Vankineni | B7: 5 | D7: 10 | E7: 0 | F7: 1 | G7: 0 | H7: 0 | I7: 0 | J7: 6 | K7: 0 | L7: 1 | M7: 1
A8: Colby | B8: 5 | D8: 16 | E8: 5 | F8: 8 | G8: 3 | H8: 0 | I8: 0 | J8: 0 | K8: 2 | L8: 0 | M8: 4
A9: Dante Dacayanan | B9: 1 | D9: 2 | E9: 1 | F9: 0 | G9: 0 | H9: 0 | I9: 0 | J9: 0 | K9: 1 | L9: 0 | M9: 0
A10: Darrell Teague | B10: 2 | D10: 6 | E10: 1 | F10: 6 | G10: 1 | H10: 0 | I10: 0 | J10: 0 | K10: 0 | L10: 0 | M10: 3
A11: David Orlowitz | B11: 1 | D11: 2 | E11: 0 | F11: 1 | G11: 0 | H11: 0 | I11: 0 | J11: 0 | K11: 0 | L11: 0 | M11: 0
A12: Don Muldoon | B12: 3 | D12: 6 | E12: 5 | F12: 5 | G12: 1 | H12: 0 | I12: 2 | J12: 0 | K12: 0 | L12: 1 | M12: 7
A13: Elliott Eno | B13: 6 | D13: 13 | E13: 2 | F13: 5 | G13: 2 | H13: 0 | I13: 0 | J13: 1 | K13: 1 | L13: 1 | M13: 2
A14: Jeff Woo | B14: 1 | D14: 0 | E14: 0 | F14: 0 | G14: 0 | H14: 0 | I14: 0 | J14: 0 | K14: 0 | L14: 0 | M14: 0
A15: Jerry Buote | B15: 4 | D15: 12 | E15: 4 | F15: 8 | G15: 3 | H15: 0 | I15: 0 | J15: 0 | K15: 1 | L15: 0 | M15: 3
A16: "Kung Fu" Lijun | B16: 6 | D16: 13 | E16: 1 | F16: 4 | G16: 0 | H16: 0 | I16: 0 | J16: 0 | K16: 3 | L16: 0 | M16: 2
A17: Marc Allen | B17: 2 | D17: 1 | E17: 1 | F17: 1 | G17: 0 | H17: 0 | I17: 0 | J17: 0 | K17: 0 | L17: 0 | M17: 0
A18: Mark Morley | B18: 1 | D18: 1 | E18: 1 | F18: 1 | G18: 0 | H18: 0 | I18: 0 | J18: 0 | K18: 0 | L18: 1 | M18: 1
A19: Mike O'Connor | B19: 8 | D19: 24 | E19: 10 | F19: 12 | G19: 2 | H19: 0 | I19: 0 | J19: 0 | K19: 4 | L19: 0 | M19: 1
A20: "Misha" Efimov | B20: 6 | D20: 10 | E20: 3 | F20: 4 | G20: 0 | H20: 0 | I20: 0 | J20: 1 | K20: 3 | L20: 1 | M20: 4
A21: Nicole Kelly | B21: 5 | D21: 9 | E21: 3 | F21: 2 | G21: 0 | H21: 0 | I21: 0 | J21: 0 | K21: 3 | L21: 0 | M21: 1
A22: Ron Smith | B22: 6 | D22: 13 | E22: 4 | F22: 5 | G22: 2 | H22: 1 | I22: 0 | J22: 0 | K22: 0 | L22: 1 | M22: 5
A23: Ryan Grimard | B23: 6 | D23: 14 | E23: 6 | F23: 12 | G23: 4 | H23: 0 | I23: 2 | J23: 0 | K23: 0 | L23: 1 | M23: 8
A24: Stella Guseynova | B24: 8 | D24: 15 | E24: 3 | F24: 6 | G24: 0 | H24: 0 | I24: 0 | J24: 2 | K24: 1 | L24: 1 | M24: 1
A25: Stephen Gregorio | B25: 4 | D25: 8 | E25: 3 | F25: 7 | G25: 2 | H25: 1 | I25: 1 | J25: 0 | K25: 0 | L25: 0 | M25: 6
A26: Steven Bergstein | B26: 4 | D26: 10 | E26: 3 | F26: 6 | G26: 1 | H26: 0 | I26: 0 | J26: 0 | K26: 0 | L26: 0 | M26: 3
A27: Taro Aiga | B27: 1 | D27: 1 | E27: 0 | F27: 0 | G27: 0 | H27: 0 | I27: 0 | J27: 0 | K27: 0 | L27: 0 | M27: 0
A28: Usha Shama | B28: 3 | D28: 3 | E28: 0 | F28: 1 | G28: 0 | H28: 0 | I28: 0 | J28: 0 | K28: 1 | L28: 0 | M28: 1
A30: TEAM | B30: =MAX(B2:B29) -> 8 | D30: =SUM(D2:D29) -> 257 | E30: 70 | F30: 133 | G30: 28 | H30: 5 | I30: 5 | J30: 12 | K30: 24 | L30: 9 | M30: 70

Sheet 2010
A1: Player | B1: G | D1: AB | E1: R | F1: H | G1: 2B | H1: 3B | I1: HR | J1: SO | K1: FC | L1: SAC | M1: RBI
A2: Ajeet Bhoyar | B2: 1 | D2: 2 | E2: 0 | F2: 1 | G2: 0 | H2: 0 | I2: 0 | J2: 0 | K2: 0 | L2: 0 | M2: 0
A3: Aleksey Kireyev | B3: 3 | D3: 12 | E3: 4 | F3: 6 | G3: 0 | H3: 0 | I3: 0 | J3: 0 | K3: 3 | L3: 0 | M3: 1
A4: Ashish Singh | B4: 1 | D4: 2 | E4: 0 | F4: 1 | G4: 0 | H4: 0 | I4: 0 | J4: 0 | K4: 1 | L4: 0 | M4: 1
A5: A-WOL | B5: 3 | D5: 12 | E5: 6 | F5: 6 | G5: 3 | H5: 0 | I5: 0 | J5: 1 | K5: 0 | L5: 0 | M5: 2
A6: Bhavani Vankineni | B6: 2 | D6: 5 | E6: 0 | F6: 2 | G6: 0 | H6: 0 | I6: 0 | J6: 0 | K6: 0 | L6: 2 | M6: 0
A7: Colby | B7: 3 | D7: 14 | E7: 6 | F7: 9 | G7: 2 | H7: 1 | I7: 0 | J7: 0 | K7: 1 | L7: 0 | M7: 4
A8: Elliott Eno | B8: 6 | D8: 24 | E8: 5 | F8: 13 | G8: 0 | H8: 0 | I8: 0 | J8: 1 | K8: 1 | L8: 0 | M8: 4
A9: Emily (Tufts) | B9: 1 | D9: 2 | E9: 0 | F9: 1 | G9: 0 | H9: 0 | I9: 0 | J9: 0 | K9: 0 | L9: 0 | M9: 0
A10: Jenna | B10: 1 | D10: 4 | E10: 0 | F10: 2 | G10: 0 | H10: 0 | I10: 0 | J10: 0 | K10: 1 | L10: 0 | M10: 0
A11: Joe (Tufts) | B11: 1 | D11: 2 | E11: 1 | F11: 1 | G11: 0 | H11: 1 | I11: 0 | J11: 0 | K11: 0 | L11: 0 | M11: 0
A12: Justine | B12: 1 | D12: 3 | E12: 1 | F12: 2 | G12: 0 | H12: 0 | I12: 0 | J12: 0 | K12: 0 | L12: 1 | M12: 2
A13: Kristen Sinitski | B13: 3 | D13: 9 | E13: 0 | F13: 5 | G13: 0 | H13: 0 | I13: 0 | J13: 0 | K13: 1 | L13: 0 | M13: 2
A14: "Kung Fu" Lijun | B14: 4 | D14: 15 | E14: 3 | F14: 9 | G14: 0 | H14: 0 | I14: 0 | J14: 1 | K14: 3 | L14: 0 | M14: 4
A15: "Misha" Efimov | B15: 3 | D15: 8 | E15: 0 | F15: 2 | G15: 0 | H15: 0 | I15: 0 | J15: 0 | K15: 2 | L15: 1 | M15: 2
A16: Naren Patel | B16: 1 | D16: 3 | E16: 1 | F16: 1 | G16: 0 | H16: 0 | I16: 0 | J16: 0 | K16: 0 | L16: 0 | M16: 0
A17: Nicole Kelly | B17: 1 | D17: 2 | E17: 0 | F17: 1 | G17: 0 | H17: 0 | I17: 0 | J17: 0 | K17: 0 | L17: 0 | M17: 0
A18: Pete Vallieres | B18: 4 | D18: 17 | E18: 8 | F18: 10 | G18: 4 | H18: 0 | I18: 1 | J18: 0 | K18: 2 | L18: 0 | M18: 10
A19: Richard Moffitt | B19: 1 | D19: 2 | E19: 1 | F19: 2 | G19: 0 | H19: 0 | I19: 0 | J19: 0 | K19: 0 | L19: 0 | M19: 1
A20: Ron Smith | B20: 2 | D20: 9 | E20: 1 | F20: 3 | G20: 1 | H20: 0 | I20: 0 | J20: 0 | K20: 1 | L20: 0 | M20: 1
A21: Ryan Grimard | B21: 4 | D21: 9 | E21: 5 | F21: 7 | G21: 3 | H21: 1 | I21: 2 | J21: 0 | K21: 0 | L21: 2 | M21: 6
A22: Shelby | B22: 2 | D22: 8 | E22: 2 | F22: 5 | G22: 0 | H22: 1 | I22: 0 | J22: 0 | K22: 0 | L22: 0 | M22: 0
A23: Steven Bergstein | B23: 2 | D23: 7 | E23: 1 | F23: 3 | G23: 0 | H23: 0 | I23: 0 | J23: 0 | K23: 1 | L23: 1 | M23: 2
A24: Theo Emmett | B24: 5 | D24: 19 | E24: 6 | F24: 13 | G24: 2 | H24: 1 | I24: 0 | J24: 1 | K24: 0 | L24: 1 | M24: 8
A25: Usha Shama | B25: 3 | D25: 5 | E25: 0 | F25: 1 | G25: 0 | H25: 0 | I25: 0 | J25: 0 | K25: 1 | L25: 0 | M25: 1
A27: TEAM | B27: =MAX(B2:B26) -> 6 | D27: =SUM(D2:D26) -> 195 | E27: 51 | F27: 106 | G27: 15 | H27: 5 | I27: 3 | J27: 4 | K27: 18 | L27: 8 | M27: 51

Sheet 2011
A1: Player | B1: G | D1: AB | E1: R | F1: H | G1: 2B | H1: 3B | I1: HR | J1: SO | K1: FC | L1: SAC | M1: RBI
A2: Ajeet Bhoyar | B2: 4 | D2: 11 | E2: 1 | F2: 9 | G2: 1 | H2: 0 | I2: 0 | J2: 0 | K2: 3 | L2: 2 | M2: 9
A3: Alexey Kireyev | B3: 1 | D3: X | E3: X | F3: X | G3: X | H3: X | I3: X | J3: X | K3: X | L3: X | M3: X
A4: Angelo S. | B4: 1 | D4: 2 | E4: 1 | F4: 1 | G4: 0 | H4: 0 | I4: 0 | J4: 0 | K4: 0 | L4: 0 | M4: 0
A5: Avi Potluri | B5: 1 | D5: 2 | E5: 1 | F5: 1 | G5: 1 | H5: 0 | I5: 0 | J5: 0 | K5: 1 | L5: 0 | M5: 0
A6: A-WOL | B6: 8 | D6: 20 | E6: 4 | F6: 11 | G6: 2 | H6: 1 | I6: 1 | J6: 1 | K6: 0 | L6: 1 | M6: 6
A7: Bob Safner | B7: 1 | D7: 2 | E7: 1 | F7: 1 | G7: 0 | H7: 0 | I7: 0 | J7: 0 | K7: 0 | L7: 0 | M7: 1
A8: Bhavani Vankineni | B8: 3 | D8: 1 | E8: 0 | F8: 0 | G8: 0 | H8: 0 | I8: 0 | J8: 1 | K8: 0 | L8: 0 | M8: 0
A9: Elliott Eno | B9: 6 | D9: 18 | E9: 8 | F9: 10 | G9: 1 | H9: 1 | I9: 0 | J9: 0 | K9: 0 | L9: 0 | M9: 2
A10: Karina Salas | B10: 6 | D10: 12 | E10: 1 | F10: 2 | G10: 0 | H10: 0 | I10: 0 | J10: 2 | K10: 1 | L10: 1 | M10: 1
A11: Katie Crislip | B11: 1 | D11: 1 | E11: 0 | F11: 1 | G11: 0 | H11: 0 | I11: 0 | J11: 0 | K11: 0 | L11: 1 | M11: 0
A12: Kaveesh Mishra | B12: 5 | D12: 14 | E12: 4 | F12: 9 | G12: 1 | H12: 0 | I12: 0 | J12: 1 | K12: 0 | L12: 0 | M12: 3
A13: Kristen Sinitski | B13: 7 | D13: 24 | E13: 7 | F13: 15 | G13: 1 | H13: 0 | I13: 0 | J13: 0 | K13: 0 | L13: 0 | M13: 5
A14: Mark Morley | B14: 1 | D14: 3 | E14: 0 | F14: 0 | G14: 0 | H14: 0 | I14: 0 | J14: 0 | K14: 0 | L14: 0 | M14: 0
A15: Ms. S.B. | B15: 1 | D15: 1 | E15: 0 | F15: 0 | G15: 0 | H15: 0 | I15: 0 | J15: 0 | K15: 0 | L15: 1 | M15: 0
A16: Naren Patel | B16: 4 | D16: 16 | E16: 3 | F16: 12 | G16: 2 | H16: 1 | I16: 0 | J16: 0 | K16: 1 | L16: 0 | M16: 4
A17: Pete Vallieres | B17: 7 | D17: 24 | E17: 11 | F17: 17 | G17: 3 | H17: 1 | I17: 1 | J17: 0 | K17: 2 | L17: 0 | M17: 8
A18: Ryan Grimard | B18: 2 | D18: 12 | E18: 8 | F18: 8 | G18: 2 | H18: 2 | I18: 1 | J18: 0 | K18: 2 | L18: 0 | M18: 8
A19: Usha Shama | B19: 4 | D19: 5 | E19: 0 | F19: 2 | G19: 0 | H19: 0 | I19: 0 | J19: 0 | K19: 0 | L19: 1 | M19: 1
A20: Yulianna Huo | B20: 5 | D20: 10 | E20: 0 | F20: 1 | G20: 0 | H20: 0 | I20: 0 | J20: 2 | K20: 0 | L20: 5 | M20: 2
A22: TEAM | B22: =MAX(B2:B21) -> 8 | D22: =SUM(D2:D21) -> 178 | E22: 50 | F22: 100 | G22: 14 | H22: 6 | I22: 3 | J22: 7 | K22: 10 | L22: 12 | M22: 50

Sheet 2012
A1: Player | B1: G | D1: AB | E1: R | F1: H | G1: 2B | H1: 3B | I1: HR | J1: SO | K1: FC | L1: SAC | M1: RBI | N1: BT | O1: TB | P1: AVG
A2: Ajeet Bhoyar | B2: 1 | D2: 1 | E2: 1 | F2: 1 | G2: 1 | H2: 0 | I2: 0 | J2: 0 | K2: 0 | L2: 1 | M2: 2 | N2: 0 | O2: =((F2-G2-H2-I2)+G2*2+H2*3+I2*4) -> 2 | P2: X
A3: A-WOL | B3: 8 | D3: 23 | E3: 6 | F3: 13 | G3: 3 | H3: 1 | I3: 1 | J3: 0 | K3: 2 | L3: 1 | M3: 5 | N3: 1 | O3: 21 | P3: =F3/D3 -> 0.5652173913
A4: Bhavani Vankineni | B4: 1 | D4: 0 | E4: 0 | F4: 0 | G4: 0 | H4: 0 | I4: 0 | J4: 0 | K4: 0 | L4: 0 | M4: 0 | N4: 0 | O4: 0 | P4: X
A5: Bill Kelley | B5: 7 | D5: 17 | E5: 9 | F5: 12 | G5: 2 | H5: 0 | I5: 0 | J5: 0 | K5: 2 | L5: 0 | M5: 1 | N5: 1 | O5: 14 | P5: =F5/D5 -> 0.7058823529
A6: Bob Bevington | B6: 3 | D6: 3 | E6: 1 | F6: 2 | G6: 0 | H6: 0 | I6: 0 | J6: 0 | K6: 0 | L6: 0 | M6: 1 | N6: 1 | O6: 2 | P6: X
A7: Chris Bowler | B7: 7 | D7: 15 | E7: 10 | F7: 12 | G7: 5 | H7: 0 | I7: 1 | J7: 0 | K7: 1 | L7: 0 | M7: 3 | N7: 4 | O7: 20 | P7: =F7/D7 -> 0.8
A8: Colleen | B8: 1 | D8: 1 | E8: 0 | F8: 1 | G8: 0 | H8: 0 | I8: 0 | J8: 0 | K8: 0 | L8: 0 | M8: 0 | N8: 0 | O8: 1 | P8: X
A9: Debra Kelley | B9: 1 | D9: 2 | E9: 0 | F9: 0 | G9: 0 | H9: 0 | I9: 0 | J9: 0 | K9: 0 | L9: 0 | M9: 0 | N9: 0 | O9: 0 | P9: X
A10: Elliott Eno | B10: 1 | D10: 3 | E10: 1 | F10: 1 | G10: 0 | H10: 0 | I10: 0 | J10: 0 | K10: 1 | L10: 0 | M10: 0 | N10: 0 | O10: 1 | P10: X
A11: Gowtham Gowda | B11: 8 | D11: 22 | E11: 3 | F11: 11 | G11: 0 | H11: 0 | I11: 1 | J11: 1 | K11: 2 | L11: 2 | M11: 9 | N11: 1 | O11: 14 | P11: =F11/D11 -> 0.5
A12: Heather Meunier | B12: 2 | D12: 4 | E12: 1 | F12: 2 | G12: 0 | H12: 0 | I12: 0 | J12: 0 | K12: 0 | L12: 3 | M12: 1 | N12: 0 | O12: 2 | P12: X
A13: Heather Lesson | B13: 6 | D13: 15 | E13: 2 | F13: 4 | G13: 0 | H13: 0 | I13: 0 | J13: 1 | K13: 1 | L13: 0 | M13: 0 | N13: 0 | O13: 4 | P13: =F13/D13 -> 0.2666666667
A14: Hebin Wei | B14: 1 | D14: 1 | E14: 0 | F14: 0 | G14: 0 | H14: 0 | I14: 0 | J14: 0 | K14: 0 | L14: 0 | M14: 0 | N14: 0 | O14: 0 | P14: X
A15: Jorge Calderon | B15: 6 | D15: 15 | E15: 1 | F15: 8 | G15: 4 | H15: 0 | I15: 0 | J15: 0 | K15: 1 | L15: 1 | M15: 3 | N15: 0 | O15: 12 | P15: =F15/D15 -> 0.5333333333
A16: Josh | B16: 1 | D16: 4 | E16: 1 | F16: 3 | G16: 0 | H16: 1 | I16: 0 | J16: 0 | K16: 1 | L16: 0 | M16: 3 | N16: 0 | O16: 5 | P16: X
A17: Kevin McCauley | B17: 9 | D17: 24 | E17: 10 | F17: 18 | G17: 4 | H17: 1 | I17: 2 | J17: 1 | K17: 1 | L17: 2 | M17: 9 | N17: 0 | O17: 30 | P17: =F17/D17 -> 0.75
A18: Kaveesh Mishra | B18: 1 | D18: 0 | E18: 0 | F18: 0 | G18: 0 | H18: 0 | I18: 0 | J18: 0 | K18: 0 | L18: 0 | M18: 0 | N18: 0 | O18: 0 | P18: X
A19: Kristen Sinitski | B19: 2 | D19: 8 | E19: 0 | F19: 3 | G19: 1 | H19: 0 | I19: 0 | J19: 0 | K19: 0 | L19: 0 | M19: 0 | N19: 0 | O19: 4 | P19: X
A20: Leah | B20: 6 | D20: 14 | E20: 1 | F20: 3 | G20: 0 | H20: 0 | I20: 0 | J20: 1 | K20: 0 | L20: 1 | M20: 1 | N20: 1 | O20: 3 | P20: =F20/D20 -> 0.2142857143
A21: Luke DelVecchio | B21: 1 | D21: 3 | E21: 2 | F21: 2 | G21: 1 | H21: 1 | I21: 0 | J21: 0 | K21: 1 | L21: 0 | M21: 0 | N21: 0 | O21: 5 | P21: X
A22: Marc Meunier | B22: 4 | D22: 7 | E22: 1 | F22: 3 | G22: 2 | H22: 0 | I22: 0 | J22: 1 | K22: 1 | L22: 0 | M22: 1 | N22: 0 | O22: 5 | P22: X
A23: Mark Vitello | B23: 9 | D23: 28 | E23: 5 | F23: 15 | G23: 3 | H23: 1 | I23: 0 | J23: 0 | K23: 2 | L23: 0 | M23: 8 | N23: 1 | O23: 20 | P23: =F23/D23 -> 0.5357142857
A24: Matt | B24: 7 | D24: 20 | E24: 9 | F24: 14 | G24: 3 | H24: 0 | I24: 2 | J24: 0 | K24: 1 | L24: 0 | M24: 7 | N24: 3 | O24: 23 | P24: =F24/D24 -> 0.7
A25: Melissa Nolte | B25: 8 | D25: 17 | E25: 1 | F25: 8 | G25: 1 | H25: 0 | I25: 0 | J25: 0 | K25: 1 | L25: 3 | M25: 4 | N25: 0 | O25: 9 | P25: =F25/D25 -> 0.4705882353
A26: Mike Parrella | B26: 1 | D26: 4 | E26: 3 | F26: 4 | G26: 0 | H26: 0 | I26: 1 | J26: 0 | K26: 0 | L26: 0 | M26: 3 | N26: 1 | O26: 7 | P26: X
A27: Nancy | B27: 2 | D27: 6 | E27: 0 | F27: 2 | G27: 0 | H27: 0 | I27: 0 | J27: 0 | K27: 0 | L27: 0 | M27: 0 | N27: 0 | O27: 2 | P27: X
A28: Patsy Gillespie | B28: 6 | D28: 15 | E28: 3 | F28: 8 | G28: 0 | H28: 0 | I28: 0 | J28: 0 | K28: 1 | L28: 3 | M28: 4 | N28: 0 | O28: 8 | P28: =F28/D28 -> 0.5333333333
A29: Pete Vallieres | B29: 1 | D29: 3 | E29: 0 | F29: 1 | G29: 0 | H29: 0 | I29: 0 | J29: 0 | K29: 0 | L29: 0 | M29: 0 | N29: 0 | O29: 1 | P29: X
A30: Russell Rick | B30: 6 | D30: 20 | E30: 8 | F30: 16 | G30: 2 | H30: 0 | I30: 0 | J30: 0 | K30: 1 | L30: 1 | M30: 10 | N30: 1 | O30: 18 | P30: =F30/D30 -> 0.8
A31: Tim Cooles | B31: 4 | D31: 12 | E31: 4 | F31: 8 | G31: 1 | H31: 1 | I31: 0 | J31: 1 | K31: 0 | L31: 0 | M31: 3 | N31: 0 | O31: 11 | P31: =F31/D31 -> 0.6666666667
A32: Tim Nolte | B32: 9 | D32: 23 | E32: 6 | F32: 8 | G32: 0 | H32: 1 | I32: 0 | J32: 0 | K32: 5 | L32: 1 | M32: 2 | N32: 0 | O32: 10 | P32: =F32/D32 -> 0.347826087
A33: Tom Cottam | B33: 5 | D33: 14 | E33: 7 | F33: 7 | G33: 0 | H33: 1 | I33: 2 | J33: 0 | K33: 1 | L33: 3 | M33: 14 | N33: 1 | O33: 15 | P33: =F33/D33 -> 0.5
A34: Vin Gillespie | B34: 2 | D34: 6 | E34: 1 | F34: 4 | G34: 1 | H34: 0 | I34: 0 | J34: 0 | K34: 0 | L34: 0 | M34: 1 | N34: 0 | O34: 5 | P34: X
A35: Yulianna Huo | B35: 4 | D35: 5 | E35: 0 | F35: 1 | G35: 0 | H35: 0 | I35: 0 | J35: 0 | K35: 1 | L35: 2 | M35: 1 | N35: 0 | O35: 1 | P35: X
A37: TEAM | B37: =MAX(B2:B36) -> 9 | D37: =SUM(D2:D36) -> 355 | E37: 97 | F37: 195 | G37: 34 | H37: 8 | I37: 10 | J37: 6 | K37: 27 | L37: 24 | M37: 96 | N37: 16 | O37: =((F37-G37-H37-I37)+G37*2+H37*3+I37*4) -> 275 | P37: =F37/D37 -> 0.5492957746
A38: Attendance is credited to those that attend a game that is ultimately forfeited or postponed.

Sheet Totals
A1: Verdasys Softball Cumulative Batting Stats (2008-2012)
A3: Player | B3: S | C3: G | D3: PA | E3: AB | F3: R | G3: H | H3: 2B | I3: 3B | J3: HR | K3: SO | L3: FC | M3: SAC | N3: RBI | O3: SLG% | P3: BA
A4: Ajeet Bhoyar | B4: =TallyGames() -> 5 | C4: =TallyStats() -> 14 | D4: =E4+M4 -> 32 | E4: =TallyStats() -> 29 | F4: 4 | G4: 18 | H4: 3 | I4: 0 | J4: 0 | K4: 0 | L4: 4 | M4: 3 | N4: 14 | O4: =((J4*4)+(I4*3)+(H4*2)+(G4-J4-I4-H4))/E4 -> 0.724137931 | P4: =G4/E4 -> 0.6206896552
A5: Aleksey Kireyev | B5: 3 | C5: 13 | D5: 47 | E5: 42 | F5: 10 | G5: 24 | H5: 0 | I5: 0 | J5: 0 | K5: 0 | L5: 4 | M5: 5 | N5: 5 | O5: =((J5*4)+(I5*3)+(H5*2)+(G5-J5-I5-H5))/E5 -> 0.5714285714 | P5: =G5/E5 -> 0.5714285714
A6: Alex "Ivan" Kvasov | B6: 1 | C6: 6 | D6: 11 | E6: 11 | F6: 2 | G6: 6 | H6: 2 | I6: 0 | J6: 0 | K6: 0 | L6: 0 | M6: 0 | N6: 0 | O6: =((J6*4)+(I6*3)+(H6*2)+(G6-J6-I6-H6))/E6 -> 0.7272727273 | P6: =G6/E6 -> 0.5454545455
A7: Alexey Kireyev | B7: 1 | C7: 1 | D7: 0 | E7: 0 | F7: 0 | G7: 0 | H7: 0 | I7: 0 | J7: 0 | K7: 0 | L7: 0 | M7: 0 | N7: 0 | O7: X | P7: X
A8: Angelo S. | B8: 1 | C8: 1 | D8: 2 | E8: 2 | F8: 1 | G8: 1 | H8: 0 | I8: 0 | J8: 0 | K8: 0 | L8: 0 | M8: 0 | N8: 0 | O8: X | P8: X
A9: Ashish Singh | B9: 1 | C9: 1 | D9: 2 | E9: 2 | F9: 0 | G9: 1 | H9: 0 | I9: 0 | J9: 0 | K9: 0 | L9: 1 | M9: 0 | N9: 1 | O9: X | P9: X
A10: Audrey Markoff | B10: 1 | C10: 1 | D10: 0 | E10: 0 | F10: 0 | G10: 0 | H10: 0 | I10: 0 | J10: 0 | K10: 0 | L10: 0 | M10: 0 | N10: 0 | O10: X | P10: X
A11: Avi Potluri | B11: 2 | C11: 7 | D11: 16 | E11: 16 | F11: 6 | G11: 8 | H11: 6 | I11: 0 | J11: 0 | K11: 1 | L11: 2 | M11: 0 | N11: 4 | O11: =((J11*4)+(I11*3)+(H11*2)+(G11-J11-I11-H11))/E11 -> 0.875 | P11: =G11/E11 -> 0.5
A12: A-WOL | B12: 5 | C12: 35 | D12: 108 | E12: 98 | F12: 25 | G12: 57 | H12: 10 | I12: 6 | J12: 3 | K12: 3 | L12: 3 | M12: 10 | N12: 19 | O12: =((J12*4)+(I12*3)+(H12*2)+(G12-J12-I12-H12))/E12 -> 0.8979591837 | P12: =G12/E12 -> 0.5816326531
A13: Bhavani Vankineni | B13: 4 | C13: 11 | D13: 19 | E13: 16 | F13: 0 | G13: 3 | H13: 0 | I13: 0 | J13: 0 | K13: 7 | L13: 0 | M13: 3 | N13: 1 | O13: =((J13*4)+(I13*3)+(H13*2)+(G13-J13-I13-H13))/E13 -> 0.1875 | P13: =G13/E13 -> 0.1875
A14: Bill Kelley | B14: 1 | C14: 7 | D14: 17 | E14: =TallyStats() -> 17 | F14: 9 | G14: 12 | H14: 2 | I14: 0 | J14: 0 | K14: 0 | L14: 2 | M14: 0 | N14: 1 | O14: =((J14*4)+(I14*3)+(H14*2)+(G14-J14-I14-H14))/E14 -> 0.8235294118 | P14: =G14/E14 -> 0.7058823529
A15: Bob Bevington | B15: 1 | C15: 3 | D15: 3 | E15: 3 | F15: 1 | G15: 2 | H15: 0 | I15: 0 | J15: 0 | K15: 0 | L15: 0 | M15: 0 | N15: 1 | O15: X | P15: X
A16: Bob Safner | B16: 1 | C16: 1 | D16: 2 | E16: 2 | F16: 1 | G16: 1 | H16: 0 | I16: 0 | J16: 0 | K16: 0 | L16: 0 | M16: 0 | N16: 1 | O16: X | P16: X
A17: Chris Bowler | B17: 1 | C17: 7 | D17: 15 | E17: 15 | F17: 10 | G17: 12 | H17: 5 | I17: 0 | J17: 1 | K17: 0 | L17: 1 | M17: 0 | N17: 3 | O17: =((J17*4)+(I17*3)+(H17*2)+(G17-J17-I17-H17))/E17 -> 1.333333333 | P17: =G17/E17 -> 0.8
A18: Colby | B18: 3 | C18: 13 | D18: 42 | E18: 41 | F18: 15 | G18: 21 | H18: 5 | I18: 1 | J18: 0 | K18: 1 | L18: 3 | M18: 1 | N18: 8 | O18: =((J18*4)+(I18*3)+(H18*2)+(G18-J18-I18-H18))/E18 -> 0.6829268293 | P18: =G18/E18 -> 0.512195122
A19: Colleen | B19: 1 | C19: 1 | D19: 1 | E19: 1 | F19: 0 | G19: 1 | H19: 0 | I19: 0 | J19: 0 | K19: 0 | L19: 0 | M19: 0 | N19: 0 | O19: X | P19: X
A20: Dante Dacayanan | B20: 1 | C20: 1 | D20: 2 | E20: 2 | F20: 1 | G20: 0 | H20: 0 | I20: 0 | J20: 0 | K20: 0 | L20: 1 | M20: 0 | N20: 0 | O20: X | P20: X
A21: Darrell Teague | B21: 2 | C21: 7 | D21: 27 | E21: 21 | F21: 5 | G21: 15 | H21: 4 | I21: 0 | J21: 0 | K21: 0 | L21: 1 | M21: 6 | N21: 3 | O21: =((J21*4)+(I21*3)+(H21*2)+(G21-J21-I21-H21))/E21 -> 0.9047619048 | P21: =G21/E21 -> 0.7142857143
A22: David Orlowitz | B22: 1 | C22: 1 | D22: 2 | E22: 2 | F22: 0 | G22: 1 | H22: 0 | I22: 0 | J22: 0 | K22: 0 | L22: 0 | M22: 0 | N22: 0 | O22: X | P22: X
A23: Debra Kelley | B23: 1 | C23: 1 | D23: 2 | E23: 2 | F23: 0 | G23: 0 | H23: 0 | I23: 0 | J23: 0 | K23: 0 | L23: 0 | M23: 0 | N23: 0 | O23: X | P23: X
A24: Dharmender | B24: 1 | C24: 3 | D24: 6 | E24: =TallyStats() -> 5 | F24: 0 | G24: 2 | H24: 0 | I24: 0 | J24: 0 | K24: 0 | L24: 2 | M24: 1 | N24: 0 | O24: X | P24: X
A25: Don Muldoon | B25: 2 | C25: 7 | D25: 27 | E25: 19 | F25: 14 | G25: 15 | H25: 9 | I25: 1 | J25: 2 | K25: 0 | L25: 0 | M25: 8 | N25: 7 | O25: =((J25*4)+(I25*3)+(H25*2)+(G25-J25-I25-H25))/E25 -> 1.684210526 | P25: =G25/E25 -> 0.7894736842
A26: Elliott Eno | B26: 5 | C26: 27 | D26: 84 | E26: 80 | F26: 20 | G26: 37 | H26: 3 | I26: 1 | J26: 0 | K26: 6 | L26: 3 | M26: 4 | N26: 8 | O26: =((J26*4)+(I26*3)+(H26*2)+(G26-J26-I26-H26))/E26 -> 0.525 | P26: =G26/E26 -> 0.4625
A27: Emily (Tufts) | B27: 1 | C27: 1 | D27: 2 | E27: 2 | F27: 0 | G27: 1 | H27: 0 | I27: 0 | J27: 0 | K27: 0 | L27: 0 | M27: 0 | N27: 0 | O27: X | P27: X
A28: Gowtham Gowda | B28: 1 | C28: 8 | D28: 24 | E28: 22 | F28: 3 | G28: 11 | H28: 0 | I28: 0 | J28: 1 | K28: 1 | L28: 2 | M28: 2 | N28: 9 | O28: =((J28*4)+(I28*3)+(H28*2)+(G28-J28-I28-H28))/E28 -> 0.6363636364 | P28: =G28/E28 -> 0.5
A29: Heather Lesson | B29: 1 | C29: 6 | D29: 15 | E29: 15 | F29: 2 | G29: 4 | H29: 0 | I29: 0 | J29: 0 | K29: 1 | L29: 1 | M29: 0 | N29: 0 | O29: =((J29*4)+(I29*3)+(H29*2)+(G29-J29-I29-H29))/E29 -> 0.2666666667 | P29: =G29/E29 -> 0.2666666667
A30: Heather Meunier | B30: 1 | C30: 2 | D30: 7 | E30: 4 | F30: 1 | G30: 2 | H30: 0 | I30: 0 | J30: 0 | K30: 0 | L30: 0 | M30: 3 | N30: 1 | O30: X | P30: X
A31: Hebin Wei | B31: 1 | C31: 1 | D31: 1 | E31: 1 | F31: 0 | G31: 0 | H31: 0 | I31: 0 | J31: 0 | K31: 0 | L31: 0 | M31: 0 | N31: 0 | O31: X | P31: X
A32: Jeff Woo | B32: 1 | C32: 1 | D32: 0 | E32: 0 | F32: 0 | G32: 0 | H32: 0 | I32: 0 | J32: 0 | K32: 0 | L32: 0 | M32: 0 | N32: 0 | O32: X | P32: X
A33: Jenna | B33: 1 | C33: 1 | D33: 4 | E33: 4 | F33: 0 | G33: 2 | H33: 0 | I33: 0 | J33: 0 | K33: 0 | L33: 1 | M33: 0 | N33: 0 | O33: X | P33: X
A34: Jerry Buote | B34: 2 | C34: 10 | D34: 38 | E34: =TallyStats() -> 33 | F34: 8 | G34: 23 | H34: 5 | I34: 0 | J34: 0 | K34: 0 | L34: 1 | M34: 5 | N34: 3 | O34: =((J34*4)+(I34*3)+(H34*2)+(G34-J34-I34-H34))/E34 -> 0.8484848485 | P34: =G34/E34 -> 0.696969697
A35: Joe (Tufts) | B35: 1 | C35: 1 | D35: 2 | E35: 2 | F35: 1 | G35: 1 | H35: 0 | I35: 1 | J35: 0 | K35: 0 | L35: 0 | M35: 0 | N35: 0 | O35: X | P35: X
A36: Johnna Infanti | B36: =TallyGames() -> 1 | C36: =TallyStats() -> 5 | D36: 12 | E36: 11 | F36: 1 | G36: 2 | H36: 1 | I36: 0 | J36: 0 | K36: 2 | L36: 3 | M36: 1 | N36: 0 | O36: =((J36*4)+(I36*3)+(H36*2)+(G36-J36-I36-H36))/E36 -> 0.2727272727 | P36: =G36/E36 -> 0.1818181818
A37: Jorge Calderon | B37: 1 | C37: 6 | D37: 16 | E37: 15 | F37: 1 | G37: 8 | H37: 4 | I37: 0 | J37: 0 | K37: 0 | L37: 1 | M37: 1 | N37: 3 | O37: =((J37*4)+(I37*3)+(H37*2)+(G37-J37-I37-H37))/E37 -> 0.8 | P37: =G37/E37 -> 0.5333333333
A38: Josh | B38: 1 | C38: 1 | D38: 4 | E38: 4 | F38: 1 | G38: 3 | H38: 0 | I38: 1 | J38: 0 | K38: 0 | L38: 1 | M38: 0 | N38: 3 | O38: X | P38: X
A39: Justine | B39: 1 | C39: 1 | D39: 4 | E39: 3 | F39: 1 | G39: 2 | H39: 0 | I39: 0 | J39: 0 | K39: 0 | L39: 0 | M39: 1 | N39: 2 | O39: X | P39: X
A40: Karina Salas | B40: 1 | C40: 6 | D40: 13 | E40: 12 | F40: 1 | G40: 2 | H40: 0 | I40: 0 | J40: 0 | K40: 2 | L40: 1 | M40: 1 | N40: 1 | O40: =((J40*4)+(I40*3)+(H40*2)+(G40-J40-I40-H40))/E40 -> 0.1666666667 | P40: =G40/E40 -> 0.1666666667
A41: Katie Crislip | B41: 1 | C41: 1 | D41: 2 | E41: 1 | F41: 0 | G41: 1 | H41: 0 | I41: 0 | J41: 0 | K41: 0 | L41: 0 | M41: 1 | N41: 0 | O41: X | P41: X
A42: Kaveesh Mishra | B42: 2 | C42: 6 | D42: 14 | E42: 14 | F42: 4 | G42: 9 | H42: 1 | I42: 0 | J42: 0 | K42: 1 | L42: 0 | M42: 0 | N42: 3 | O42: =((J42*4)+(I42*3)+(H42*2)+(G42-J42-I42-H42))/E42 -> 0.7142857143 | P42: =G42/E42 -> 0.6428571429
A43: Kelly Allen | B43: 1 | C43: 5 | D43: 17 | E43: 16 | F43: 1 | G43: 5 | H43: 0 | I43: 0 | J43: 0 | K43: 1 | L43: 0 | M43: 1 | N43: 0 | O43: 0.3125 | P43: 0.3125
A44: Kelly Raymond | B44: 1 | C44: 4 | D44: 15 | E44: =TallyStats() -> 12 | F44: 0 | G44: 3 | H44: 0 | I44: 0 | J44: 0 | K44: 1 | L44: 1 | M44: 3 | N44: 0 | O44: 0.25 | P44: 0.25
A45: Kevin McCauley | B45: 1 | C45: 9 | D45: 26 | E45: 24 | F45: 10 | G45: 18 | H45: 4 | I45: 1 | J45: 2 | K45: 1 | L45: 1 | M45: 2 | N45: 9 | O45: 1.25 | P45: 0.75
A46: Kim Reynolds | B46: 1 | C46: 5 | D46: 13 | E46: 11 | F46: 2 | G46: 5 | H46: 0 | I46: 0 | J46: 0 | K46: 0 | L46: 1 | M46: 2 | N46: 0 | O46: 0.4545454545 | P46: 0.4545454545
A47: Kristen Sinitski | B47: 3 | C47: 12 | D47: 41 | E47: 41 | F47: 7 | G47: 23 | H47: 2 | I47: 0 | J47: 0 | K47: 0 | L47: 1 | M47: 0 | N47: 7 | O47: 0.6097560976 | P47: 0.5609756098
A48: Leah | B48: 1 | C48: 6 | D48: 15 | E48: 14 | F48: 1 | G48: 3 | H48: 0 | I48: 0 | J48: 0 | K48: 1 | L48: 0 | M48: 1 | N48: 1 | O48: 0.2142857143 | P48: 0.2142857143
A49: "Kung Fu" Lijun | B49: 2 | C49: 10 | D49: 28 | E49: 28 | F49: 4 | G49: 13 | H49: 0 | I49: 0 | J49: 0 | K49: 1 | L49: 6 | M49: 0 | N49: 6 | O49: =((J49*4)+(I49*3)+(H49*2)+(G49-J49-I49-H49))/E49 -> 0.4642857143 | P49: =G49/E49 -> 0.4642857143
A50: Liz Cornwall | B50: 1 | C50: 7 | D50: 25 | E50: 22 | F50: 4 | G50: 7 | H50: 2 | I50: 0 | J50: 0 | K50: 0 | L50: 1 | M50: 3 | N50: 0 | O50: =((J50*4)+(I50*3)+(H50*2)+(G50-J50-I50-H50))/E50 -> 0.4090909091 | P50: =G50/E50 -> 0.3181818182
A51: Luke DelVecchio | B51: 1 | C51: 1 | D51: 3 | E51: 3 | F51: 2 | G51: 2 | H51: 1 | I51: 1 | J51: 0 | K51: 0 | L51: 1 | M51: 0 | N51: 0 | O51: X | P51: X
A52: Marc Allen | B52: 1 | C52: 2 | D52: 1 | E52: 1 | F52: 1 | G52: 1 | H52: 0 | I52: 0 | J52: 0 | K52: 0 | L52: 0 | M52: 0 | N52: 0 | O52: X | P52: X
A53: Marc Meunier | B53: 1 | C53: 4 | D53: 7 | E53: 7 | F53: 1 | G53: 3 | H53: 2 | I53: 0 | J53: 0 | K53: 1 | L53: 1 | M53: 0 | N53: 1 | O53: X | P53: X
A54: Mark Morley | B54: 3 | C54: 3 | D54: 10 | E54: =TallyStats() -> 8 | F54: 1 | G54: 3 | H54: 0 | I54: 0 | J54: 0 | K54: 0 | L54: 0 | M54: 2 | N54: 1 | O54: X | P54: X
A55: Mark Vitello | B55: 1 | C55: 9 | D55: 28 | E55: 28 | F55: 5 | G55: 15 | H55: 3 | I55: 1 | J55: 0 | K55: 0 | L55: 2 | M55: 0 | N55: 8 | O55: =((J55*4)+(I55*3)+(H55*2)+(G55-J55-I55-H55))/E55 -> 0.7142857143 | P55: =G55/E55 -> 0.5357142857
A56: Matt | B56: 1 | C56: 7 | D56: 20 | E56: 20 | F56: 9 | G56: 14 | H56: 3 | I56: 0 | J56: 2 | K56: 0 | L56: 1 | M56: 0 | N56: 7 | O56: =((J56*4)+(I56*3)+(H56*2)+(G56-J56-I56-H56))/E56 -> 1.15 | P56: =G56/E56 -> 0.7
A57: Melissa Nolte | B57: 1 | C57: 8 | D57: 20 | E57: 17 | F57: 1 | G57: 8 | H57: 1 | I57: 0 | J57: 0 | K57: 0 | L57: 1 | M57: 3 | N57: 4 | O57: =((J57*4)+(I57*3)+(H57*2)+(G57-J57-I57-H57))/E57 -> 0.5294117647 | P57: =G57/E57 -> 0.4705882353
A58: Mike O'Connor | B58: 2 | C58: 16 | D58: 59 | E58: 52 | F58: 22 | G58: 36 | H58: 3 | I58: 0 | J58: 0 | K58: 0 | L58: 4 | M58: 7 | N58: 1 | O58: =((J58*4)+(I58*3)+(H58*2)+(G58-J58-I58-H58))/E58 -> 0.75 | P58: =G58/E58 -> 0.6923076923
A59: Mike Parrella | B59: 1 | C59: 1 | D59: 4 | E59: 4 | F59: 3 | G59: 4 | H59: 0 | I59: 0 | J59: 1 | K59: 0 | L59: 0 | M59: 0 | N59: 3 | O59: X | P59: X
A60: "Misha" Efimov | B60: 2 | C60: 9 | D60: 20 | E60: 18 | F60: 3 | G60: 6 | H60: 0 | I60: 0 | J60: 0 | K60: 1 | L60: 5 | M60: 2 | N60: 6 | O60: X | P60: X
A61: Ms. S.B. | B61: 1 | C61: 1 | D61: 2 | E61: 1 | F61: 0 | G61: 0 | H61: 0 | I61: 0 | J61: 0 | K61: 0 | L61: 0 | M61: 1 | N61: 0 | O61: X | P61: X
A62: Nancy | B62: 1 | C62: 2 | D62: 6 | E62: 6 | F62: 0 | G62: 2 | H62: 0 | I62: 0 | J62: 0 | K62: 0 | L62: 0 | M62: 0 | N62: 0 | O62: X | P62: X
A63: Naren Patel | B63: 3 | C63: 7 | D63: 25 | E63: 24 | F63: 6 | G63: 15 | H63: 2 | I63: 1 | J63: 0 | K63: 0 | L63: 1 | M63: 1 | N63: 4 | O63: =((J63*4)+(I63*3)+(H63*2)+(G63-J63-I63-H63))/E63 -> 0.7916666667 | P63: =G63/E63 -> 0.625
A64: Nicole Kelly | B64: 3 | C64: 8 | D64: 17 | E64: =TallyStats() -> 17 | F64: 6 | G64: 6 | H64: 0 | I64: 0 | J64: 0 | K64: 0 | L64: 3 | M64: 0 | N64: 1 | O64: =((J64*4)+(I64*3)+(H64*2)+(G64-J64-I64-H64))/E64 -> 0.3529411765 | P64: =G64/E64 -> 0.3529411765
A65: Patsy Gillespie | B65: 1 | C65: 6 | D65: 18 | E65: 15 | F65: 3 | G65: 8 | H65: 0 | I65: 0 | J65: 0 | K65: 0 | L65: 1 | M65: 3 | N65: 4 | O65: =((J65*4)+(I65*3)+(H65*2)+(G65-J65-I65-H65))/E65 -> 0.5333333333 | P65: =G65/E65 -> 0.5333333333
A66: Pete Vallieres | B66: 3 | C66: 12 | D66: 44 | E66: 44 | F66: 19 | G66: 28 | H66: 7 | I66: 1 | J66: 2 | K66: 0 | L66: 4 | M66: 0 | N66: 18 | O66: =((J66*4)+(I66*3)+(H66*2)+(G66-J66-I66-H66))/E66 -> 0.9772727273 | P66: =G66/E66 -> 0.6363636364
A67: Richard Moffitt | B67: 1 | C67: 1 | D67: 2 | E67: 2 | F67: 1 | G67: 2 | H67: 0 | I67: 0 | J67: 0 | K67: 0 | L67: 0 | M67: 0 | N67: 1 | O67: X | P67: X
A68: Ron Smith | B68: =TallyGames() -> 3 | C68: =TallyStats() -> 15 | D68: =E68+M68 -> 52 | E68: 41 | F68: 11 | G68: 17 | H68: 5 | I68: 3 | J68: 0 | K68: 2 | L68: 4 | M68: 11 | N68: 6 | O68: =((J68*4)+(I68*3)+(H68*2)+(G68-J68-I68-H68))/E68 -> 0.6829268293 | P68: =G68/E68 -> 0.4146341463
A69: Russell Rick | B69: 1 | C69: 6 | D69: 21 | E69: 20 | F69: 8 | G69: 16 | H69: 2 | I69: 0 | J69: 0 | K69: 0 | L69: 1 | M69: 1 | N69: 10 | O69: =((J69*4)+(I69*3)+(H69*2)+(G69-J69-I69-H69))/E69 -> 0.9 | P69: =G69/E69 -> 0.8
A70: Ryan Grimard | B70: 4 | C70: 17 | D70: 71 | E70: 52 | F70: 25 | G70: 41 | H70: 12 | I70: 4 | J70: 7 | K70: 0 | L70: 3 | M70: 19 | N70: 22 | O70: =((J70*4)+(I70*3)+(H70*2)+(G70-J70-I70-H70))/E70 -> 1.576923077 | P70: =G70/E70 -> 0.7884615385
A71: Sam | B71: 1 | C71: 1 | D71: 1 | E71: 1 | F71: 0 | G71: 0 | H71: 0 | I71: 0 | J71: 0 | K71: 0 | L71: 0 | M71: 0 | N71: 0 | O71: X | P71: X
A72: Shelby | B72: 1 | C72: 2 | D72: 8 | E72: 8 | F72: 2 | G72: 5 | H72: 0 | I72: 1 | J72: 0 | K72: 0 | L72: 0 | M72: 0 | N72: 0 | O72: X | P72: X
A73: Stella Guseynova | B73: 1 | C73: 8 | D73: 16 | E73: 15 | F73: 3 | G73: 6 | H73: 0 | I73: 0 | J73: 0 | K73: 2 | L73: 1 | M73: 1 | N73: 1 | O73: =((J73*4)+(I73*3)+(H73*2)+(G73-J73-I73-H73))/E73 -> 0.4 | P73: =G73/E73 -> 0.4
A74: Stephen Gregorio | B74: 1 | C74: 4 | D74: 8 | E74: =TallyStats() -> 8 | F74: 3 | G74: 7 | H74: 2 | I74: 1 | J74: 1 | K74: 0 | L74: 0 | M74: 0 | N74: 6 | O74: X | P74: X
A75: Steven Bergstein | B75: 3 | C75: 10 | D75: 34 | E75: 31 | F75: 9 | G75: 19 | H75: 1 | I75: 1 | J75: 0 | K75: 0 | L75: 1 | M75: 3 | N75: 5 | O75: =((J75*4)+(I75*3)+(H75*2)+(G75-J75-I75-H75))/E75 -> 0.7096774194 | P75: =G75/E75 -> 0.6129032258
A76: Taro Aiga | B76: 1 | C76: 1 | D76: 1 | E76: 1 | F76: 0 | G76: 0 | H76: 0 | I76: 0 | J76: 0 | K76: 0 | L76: 0 | M76: 0 | N76: 0 | O76: X | P76: X
A77: Theo Emmett | B77: 1 | C77: 5 | D77: 20 | E77: 19 | F77: 6 | G77: 13 | H77: 2 | I77: 1 | J77: 0 | K77: 1 | L77: 0 | M77: 1 | N77: 8 | O77: =((J77*4)+(I77*3)+(H77*2)+(G77-J77-I77-H77))/E77 -> 0.8947368421 | P77: =G77/E77 -> 0.6842105263
A78: Tim Cooles | B78: 1 | C78: 4 | D78: 12 | E78: 12 | F78: 4 | G78: 8 | H78: 1 | I78: 1 | J78: 0 | K78: 1 | L78: 0 | M78: 0 | N78: 3 | O78: X | P78: X
A79: Tim Nolte | B79: 1 | C79: 9 | D79: 24 | E79: 23 | F79: 6 | G79: 8 | H79: 0 | I79: 1 | J79: 0 | K79: 0 | L79: 5 | M79: 1 | N79: 2 | O79: X | P79: X
A80: Tom Cottam | B80: 1 | C80: 5 | D80: 17 | E80: 14 | F80: 7 | G80: 7 | H80: 0 | I80: 1 | J80: 2 | K80: 0 | L80: 1 | M80: 3 | N80: 14 | O80: X | P80: X
A81: Usha Shama | B81: 3 | C81: 10 | D81: 14 | E81: 13 | F81: 0 | G81: 4 | H81: 0 | I81: 0 | J81: 0 | K81: 0 | L81: 2 | M81: 1 | N81: 3 | O81: =((J81*4)+(I81*3)+(H81*2)+(G81-J81-I81-H81))/E81 -> 0.3076923077 | P81: =G81/E81 -> 0.3076923077
A82: Vin Gillespie | B82: 1 | C82: 2 | D82: 6 | E82: 6 | F82: 1 | G82: 4 | H82: 1 | I82: 0 | J82: 0 | K82: 0 | L82: 0 | M82: 0 | N82: 1 | O82: X | P82: X
A83: Yulianna Huo | B83: 2 | C83: 9 | D83: =E83+M83 -> 22 | E83: 15 | F83: 0 | G83: 2 | H83: 0 | I83: 0 | J83: 0 | K83: 2 | L83: 1 | M83: 7 | N83: 3 | O83: =((J83*4)+(I83*3)+(H83*2)+(G83-J83-I83-H83))/E83 -> 0.1333333333 | P83: =G83/E83 -> 0.1333333333
A85: TEAM | B85: =SUM(B4:B83) -> 127 | C85: 489 | D85: 1418 | E85: 1283 | F85: 345 | G85: 695 | H85: 116 | I85: 30 | J85: 24 | K85: 40 | L85: 92 | M85: 135 | N85: 267 | O85: =((J85*4)+(I85*3)+(H85*2)+(G85-J85-I85-H85))/E85 -> 0.7349961029 | P85: =G85/E85 -> 0.5416991426
